Cogmind - Beta 12 @@@ ROGUE MODE // 2023.03.09 @ 14:58:46 Player: Zirov Result: Self-destructed Performance ------------- Evolutions (1) 500 Regions Visited (2) 400 Robots Destroyed (41) 205 Value Destroyed (830) 830 Prototype IDs (1) 20 Alien Tech Used (0) 0 Bonus (0) 0 TOTAL SCORE: 1955 Bonus ------- None Cogmind --------- Core Integrity 238/400 Matter 300/300 Energy 100/100 System Corruption 0% Temperature Cool (56) Movement Walking (120) Location -9/Materials Parts ------- > --- POWER (1) -------- (None) > --- PROPULSION (2) --- Aluminum Leg Aluminum Leg > --- UTILITY (3) ------ Medium Storage Unit Hacking Suite > --- WEAPON (3) ------- Small Laser Mini Grenade Launcher > --- INVENTORY (10) --- Improved Ion Engine Aluminum Leg Aluminum Leg Heat Sink Improved Heat Sink Large Storage Unit Weight Redist. System High-powered Tractor Beam Mining Laser Peak State ------------ > --- POWER ------------ Improved Ion Engine > --- PROPULSION ------- Aluminum Leg Aluminum Leg > --- UTILITY ---------- Medium Storage Unit Sensor Array Hacking Suite > --- WEAPON ----------- Beam Cannon Heavy Assault Rifle Improved Assault Rifle > --- INVENTORY -------- Improved Heat Sink Large Storage Unit Weight Redist. System Sensor Array High-powered Tractor Beam EM Pulse Gun Mini Grenade Launcher Mining Laser [Rating: 16] Favorites ----------- Power Ion Engine Engine Ion Engine Propulsion Aluminum Leg Leg Aluminum Leg Utility Seismic Detector Device Seismic Detector Storage Small Storage Unit Hackware Hacking Suite Weapon Assault Rifle Energy Gun EM Pulse Gun Energy Cannon Beam Cannon Ballistic Gun Assault Rifle Launcher Grenade Launcher Special Weapon Mining Laser Build | -11 -10 -9 ------- Run | Jun Mat Mat Slots Evolved 2 | . . 2 Power . | . . . Propulsion . | . . . Utility 1 | . . 1 Weapon 1 | . . 1 Parts Attached 36 | 7 12 17 Power 3 | 1 1 1 Engine 3 | 1 1 1 Core . | . . . Reactor . | . . . Propulsion 11 | 2 4 5 Treads . | . . . Leg 11 | 2 4 5 Wheel . | . . . Hover . | . . . Flight . | . . . Utility 7 | 2 3 2 Device 4 | 1 2 1 Storage 2 | 1 1 . Processor . | . . . Hackware 1 | . . 1 Protection . | . . . Artifact . | . . . Weapon 15 | 2 4 9 Energy Gun 5 | . . 5 Energy Cannon 1 | . . 1 Ballistic Gun 6 | 2 2 2 Ballistic Cannon . | . . . Launcher 2 | . 1 1 Special Weapon 1 | . 1 . Impact Weapon . | . . . Slashing Weapon . | . . . Piercing Weapon . | . . . Special Melee Weapon . | . . . Unidentified Prototypes 1 | . . 1 Parts Lost 13 | . 3 10 Power 3 | . 1 2 Propulsion 2 | . . 2 Utility 2 | . . 2 Weapon 6 | . 2 4 Highest Loss Streak 6 | . 3 6 To Critical Strikes . | . . . Average Slot Usage (%) 98 | . 99 96 Engine 13 | . 13 11 Leg 25 | . 28 21 Device 12 | . 14 10 Storage 13 | . 14 11 Hackware 3 | . . 11 Energy Gun 3 | . . 11 Energy Cannon 1 | . . 3 Ballistic Gun 21 | . 24 13 Launcher 2 | . 2 2 Naked Turns . | . . . Heaviest Build 25 | 15 20 25 Greatest Support 20 | 20 20 20 Greatest Overweight (x) 3 | 3 . 2 Average Overweight (x) . | . . . Largest Inventory Capacity 10 | 8 10 10 Average Capacity 8 | 7 8 10 Most Carried 10 | 1 9 10 Average Carried 6 | . 6 8 Final Capacity 10 | 8 10 10 Final Carried 9 | 1 9 9 Class Distribution -------------------- 53% | Mutant 29% | Scavenger-Mutant 17% | Skirmisher Dominant Class ---------------- Mutant | -10/Materials Skirmisher | -9/Materials Resources | -11 -10 -9 ----------- Run | Jun Mat Mat Matter Collected 1078 | 179 623 276 Remotely . | . . . Salvage Created 1323 | 13 714 596 Parts 97 | 4 54 39 Haulers Intercepted 3 | . 2 1 Recyclers Shooed 1 | . 1 . Parts Field Recycled . | . . . Retrieved Matter . | . . . Parts Self-Destructed . | . . . Prevented . | . . . Kills | -11 -10 -9 ------- Run | Jun Mat Mat Combat Hostiles Destroyed 23 | . 11 12 Guns 17 | . 10 7 Cannons 5 | . . 5 AOE 1 | . 1 . Classes Destroyed 10 | 1 8 1 Worker 5 | . 4 1 Builder 1 | . 1 . Tunneler 4 | 1 3 . Hauler 3 | . 2 1 Recycler 2 | . 1 1 Operator 1 | . 1 . Watcher 2 | . 1 1 Swarmer 7 | . 3 4 Grunt 13 | . 8 5 Sentry 3 | . . 3 Best Kill Streak 4 | 1 4 4 Combat Bots Only 4 | . 3 4 Max Kills in Single Turn 2 | 1 2 2 Gunslinging 1 | . . 1 Exploded 1 | . 1 . Melee . | . . . Uniques/NPCs Destroyed . | . . . Combat | -11 -10 -9 -------- Run | Jun Mat Mat Damage Taken 1813 | . 784 1029 Core 328 | . 166 162 Absorbed by Shields . | . . . Core Remaining (%) 66 | 100 33 . Volleys Fired 122 | 1 78 43 Largest 3 | 2 2 3 Hottest 106 | 40 50 106 Shots Fired 248 | 2 146 100 Gun 219 | 2 142 75 Cannon 24 | . . 24 Launcher 5 | . 4 1 Special . | . . . Kinetic 189 | 2 142 45 Thermal 35 | . . 35 Explosive 5 | . 4 1 Electromagnetic 19 | . . 19 Robot Hit Streak 19 | 1 12 19 Robot Miss Streak 5 | . 5 2 Penetration Max . | . . . Secondary Targets 4 | . 1 3 Max Gunslinging Chain 2 | . 1 2 Shots Hit Robots 160 | 1 89 70 Core Hits 65 | 1 40 24 Critical Kills . | . . . Critical Parts Destroyed 1 | . 1 . Critical Strikes 1 | . 1 . Destroy 1 | . 1 . Melee Attacks . | . . . Impact . | . . . Slashing . | . . . Piercing . | . . . Sneak Attacks . | . . . Combat Hostiles . | . . . Follow-up Attacks . | . . . Damage Inflicted 2268 | 10 1282 976 Guns 1718 | 10 1084 624 Cannons 316 | . . 316 Explosions 234 | . 198 36 Melee . | . . . Ramming . | . . . Kinetic 1463 | 10 1084 369 Thermal 432 | . . 432 Explosive 234 | . 198 36 Electromagnetic 139 | . . 139 Impact . | . . . Slashing . | . . . Piercing . | . . . Highest Corruption 2 | . 2 . Average Corruption 2 | . 2 . Corruption Purged . | . . . Corruption Blocked . | . . . Effects 14 | . 14 . Message Errors 1 | . 1 . Matter Fused 6 | . 6 . Heat Flow Errors 1 | . 1 . Energy Discharges 2 | . 2 . Data Loss (minor) 2 | . 2 . Data Loss (major) 1 | . 1 . Misfires 1 | . 1 . Overload Shots . | . . . Overflow Damage 15 | . 14 1 Projectiles . | . . . Explosions 15 | . 14 1 Melee . | . . . Knockbacks . | . . . Impact . | . . . Kinetic . | . . . Secondary . | . . . Self-Inflicted Damage 77 | . 56 21 Shots 4 | . 3 1 Rammed . | . . . Targets Rammed . | . . . Kicked . | . . . Crushed . | . . . Highest Temperature 509 | . 181 509 Average Temperature 121 | . 30 141 Received Heat Transfer 768 | . 345 423 Effects 7 | . . 7 Shutdowns 3 | . . 3 Interference 3 | . . 3 Damage (major) 1 | . . 1 Siege Activations . | . . . Robots Corrupted . | . . . Combat Hostiles . | . . . Parts Fried 1 | . . 1 Impact Corruptions . | . . . Robots Melted . | . . . Combat Hostiles . | . . . Parts Melted . | . . . Heat Transferred 941 | . . 941 Parts Sabotaged . | . . . Parts Stolen . | . . . Parts Stripped . | . . . Power Chain Reactions . | . . . Missiles Intercepted . | . . . Alert | -11 -10 -9 ------- Run | Jun Mat Mat Peak Influence 253 | 5 189 253 Initial 46 | . 3 46 Average 90 | 2 70 147 Maximum Alert Level 1 | . . 1 Low Security (%) 94 | 100 100 80 Level 1 5 | . . 19 Level 2 . | . . . Level 3 . | . . . Level 4 . | . . . Level 5 . | . . . High Security . | . . . Max Security . | . . . Squads Dispatched 3 | . 2 1 Investigation 1 | . 1 . Extermination . | . . . Reinforcement 2 | . 1 1 Assault . | . . . Garrison . | . . . Intercept . | . . . Searches Triggered . | . . . Construction Impeded . | . . . Haulers Reinforced . | . . . Active Scanning Responses . | . . . Cargo Convoy Interrupts . | . . . Stealth | -11 -10 -9 --------- Run | Jun Mat Mat Distress Signals . | . . . Communications Jammed . | . . . Distress Signals . | . . . Times Spotted 40 | . 22 18 Peak Tracking Total 6 | . 5 6 Tactical Retreats 2 | . 2 . Traps | -11 -10 -9 ------- Run | Jun Mat Mat Traps Triggered 5 | . 2 3 Indirectly . | . . . Trap Hack Attempts . | . . . Triggered . | . . . Disarmed . | . . . Reprogrammed . | . . . Reused . | . . . Traps Extracted . | . . . Installed . | . . . Triggered . | . . . Machines | -11 -10 -9 ---------- Run | Jun Mat Mat Machines Disabled 4 | . 1 3 Max in Single Turn 1 | . 1 1 Machines Repaired . | . . . Machines Sabotaged . | . . . Overloaded Fab Kills . | . . . Hacking | -11 -10 -9 --------- Run | Jun Mat Mat Machines Accessed 10 | . 9 1 Terminals 8 | . 7 1 Fabricators . | . . . Repair Stations 1 | . 1 . Recycling Units 1 | . 1 . Scanalyzers . | . . . Garrison Access . | . . . Total Hacks 23 | . 20 3 Successful 7 | . 6 1 Failed 16 | . 14 2 Catastrophic 3 | . 3 . Database Lockouts . | . . . Manual 4 | . 4 . Terminals 19 | . 16 3 Fabricators . | . . . Repair Stations 1 | . 1 . Recycling Units 3 | . 3 . Scanalyzers . | . . . Garrison Access . | . . . Terminal Hacks 6 | . 5 1 Branch Access Points 1 | . 1 . Emergency Access Points 1 | . 1 . Terminal Index 1 | . 1 . Locate Traps 1 | . . 1 Zone Layout 2 | . 2 . Fabricator Hacks . | . . . Repair Station Hacks . | . . . Recycling Unit Hacks 1 | . 1 . Report Inventory 1 | . 1 . Scanalyzer . | . . . Garrison Access Hacks . | . . . Unauthorized Hacks . | . . . Terminals . | . . . Fabricators . | . . . Repair Stations . | . . . Recycling Units . | . . . Scanalyzers . | . . . Garrison Access . | . . . Data Cores Recovered . | . . . Used . | . . . Hacking Detections 10 | . 9 1 Full Trace Events . | . . . Feedback Events . | . . . Feedback Blocked . | . . . Robot Schematics Acquired . | . . . Robots Built . | . . . Authchips . | . . . Time . | . . . Total Robot Build Rating . | . . . Part Schematics Acquired . | . . . Parts Built . | . . . Authchips . | . . . Time . | . . . Total Part Build Rating . | . . . Parts Repaired . | . . . Time . | . . . Parts Recycled . | . . . Recycled Matter . | . . . Retrieved Matter . | . . . Retrieved Components . | . . . Parts Scanalyzed . | . . . Part Schematics Acquired . | . . . Parts Damaged . | . . . Bothacking | -11 -10 -9 ------------ Run | Jun Mat Mat Used RIF Installer . | . . . Robots Hacked . | . . . Non-combat . | . . . Combat . | . . . Robot Hacks Applied . | . . . Relay Couplers Released . | . . . Fabnet Peak Effective % . | . . . Robots Rewired . | . . . Allies Hacked . | . . . Hacks Repelled . | . . . Allies | -11 -10 -9 -------- Run | Jun Mat Mat Total Allies . | . . . Largest Group . | . . . Highest-Rated Group . | . . . Highest-Rated Ally . | . . . Total Orders . | . . . Ally Attacks . | . . . Total Damage . | . . . Kills . | . . . Allies Corrupted . | . . . Allies Melted . | . . . Intel | -11 -10 -9 ------- Run | Jun Mat Mat Robot Analysis Total . | . . . Derelict Logs Recovered . | . . . Drone Launches . | . . . Drone Recoveries . | . . . Exploration | -11 -10 -9 ------------- Run | Jun Mat Mat Turns Passed 2478 | 80 1664 734 Spaces Moved 1418 | 57 1071 290 Core 12 | 12 . . Treads . | . . . Legs 1406 | 45 1071 290 Wheels . | . . . Hover . | . . . Flight . | . . . Fastest Speed 50 | 50 120 120 Average Speed 132 | 115 120 182 Slowest Speed 260 | 200 120 260 Overloaded Moves . | . . . Propulsion Burnouts . | . . . Robots Hopped . | . . . Cave-ins Triggered . | . . . Exploration Rate (%) 42 | 4 99 24 Regions Visited 2 Branch Regions . Pre-discovered Areas . | . . . Known Exits Taken . | . . . Unknown Exits Taken 2 | 1 1 . Scrap Searched . | . . . Spaces Dug . | . . . Terrain Destroyed 37 | . 27 10 Melee . | . . . Projectile . | . . . AOE 37 | . 27 10 Terrain Rammed . | . . . Walls Destroyed . | . . . Machines Disabled . | . . . Actions | -11 -10 -9 --------- Run | Jun Mat Mat Total 1794 | 65 1313 416 Wait 186 | . 131 55 Move 1416 | 56 1070 290 Hop . | . . . Pick Up 21 | 1 12 8 Fast Attach 13 | 7 1 5 Attach 10 | . 3 7 Detach 1 | . 1 . Swap 13 | . 8 5 Drop 12 | . 9 3 Fire 122 | 1 78 43 Melee . | . . . Ram . | . . . Kick . | . . . Crush . | . . . Escape Stasis . | . . . Rewire . | . . . Trap . | . . . Miscellaneous . | . . . Route ------- -11/Junkyard -10/Materials (discovered 5 exits: *Mat x3 / *Min x2) -9/Materials History --------- Turn | Location | Event 28 | -11/Junkyard | Discovered new exit (range 16) 81 | -11/Junkyard | Entered Materials 151 | -10/Materials | Identified exit to Mines 310 | -10/Materials | Build established: Mutant 493 | -10/Materials | Discovered new exit (range 9) 995 | -10/Materials | Discovered new exit (range 9) 1293 | -10/Materials | Build established: Scavenger-Mutant 1443 | -10/Materials | Discovered new exit (range 15) 1512 | -10/Materials | Core integrity fell below 50% 1554 | -10/Materials | Lost 3 parts (1p2w) 1745 | -10/Materials | Entered another Materials area 1745 | -9/Materials | Evolved 2 slots: Utility x1, Weapon x1 1808 | -9/Materials | Build established: Mutant 2131 | -9/Materials | Build established: Skirmisher 2317 | -9/Materials | Lost 6 parts (1p2n1u2w) 2479 | -9/Materials | Self-destructed Last Messages --------------- 02391_ An explosion rips through the floor. 02393_ W-16 Scout destroyed. 02393_ Imp. Assault Rifle destroyed. 02393_ Destroyed Imp. Assault Rifle. 02397_ Acquired 4 matter. 02399_ K-01 Serf collects debris. 02402_ K-01 Serf cleans the Fusion Modulator. 02411_ T-07 Excavator is excavating. 02420_ Connecting with Terminal... >>Traps(Locate) Found 2 traps in 1 array: 2x Explosive Trap Map updated. 02429_ Acquired 14 matter. 02460_ Sensor Array destroyed. 02465_ Heat Sink fried. 02465_ Y-45 Defender destroyed. 02465_ Door malfunctions. 02470_ EM Pulse Gun destroyed. 02473_ Imp. Ion Engine destroyed. Map ----- +----------------------------------------------------+ | ?????????????????????????????????????????????????? | | ?????????????????????????????????????????????????? | | ?????????????????????????????????????????????????? | | ?????????????????????????????????????????????????? | | ?????????????????????????????????????????????????? | | ?????????????????????????????????????????????????? | | ?????????????????????????????????????????????????? | | ?????????????????????????????????????????????????? | | ?????????????????????????????????????????????????? | | ?????????????????????????????????????????????????? | | ?????????????????????????????????????????????????? | | ?????????????????????????????????? ????????????? | | ????????????????????? ??????????? #???????????? | | ????????????????????? ??????????? #????????##+# | | ???????????????????? ??????????# #???????# | | ???????????????????# ??????????# +???????# """ | | ???????????????????# ?########## #???????# """ | | ??????????????????## ## ! ## #???????# """ | | ??????????????##+## # ## #???????# | | ??????????????? # ## #???????# ""T | | ???????????????? T k ## #???????# """ | | ????????????????? #g ## #???????# [ | | ??????????????????# # ## ##??????##### | | ???????????????????# ## % # ##########%% | | ???????????????????# ## # %[ | | ???????????????????# ##@ + T % | | ???????????????????# gl* # | | ???????????????????# ##= # ##+####### | | ???????????????????# ########### ## #?#### | | ???????????????????# #???????# # ## """ #?# | | ???????????????????# #???????# ## """ #?# " | | ???????????????????# #???????# # + """ #?# " | | ???????????????????# #???????### ## ### " | | ??????????????????? ?????????###### """ ## | | ??????????????????# ???????######## """ ## " | | ??????????????????# + """ # " | | ??????????????????# ???????######## = " | | ??????????????????# ??????????????# | | ??????????????????###+##??????????????# # | | ??????????????????????????????????????# # # ## | | ??????????????????????????????????????###########? | | ?????????????????????????????????????????????????? | | ?????????????????????????????????????????????????? | | ?????????????????????????????????????????????????? | | ?????????????????????????????????????????????????? | | ?????????????????????????????????????????????????? | | ?????????????????????????????????????????????????? | | ?????????????????????????????????????????????????? | | ?????????????????????????????????????????????????? | | ?????????????????????????????????????????????????? | +----------------------------------------------------+ Best States ------------- Heat Dissipation 28 Energy Generation 12 Energy Capacity 265 Matter Stores 300 Matter Capacity 300 Sight Range 16 Robot Scan Range 14 Terrain Scan Density 10 Evasion (%) 55 Offensive Hacking 10 Item Schematics ----------------- None Robot Schematics ------------------ None Fabricated ------------ Nothing Alien Tech Used ----------------- None Achievements -------------- None Challenges ------------ None Game ------ Seed AccelerationFocalCasing Manual? 0 Play Time 00:31:54 Cumulative 38.4 hours Start 2023.03.09 @ 14:19:08 End 2023.03.09 @ 14:58:46 Sessions 1 Manual Loads 0 Difficulty Rogue Special Mode None Game No. 41 Rogue 41 Adventurer 0 Explorer 0 Win Type - Total 0 Types 0/0/0/0/0/0/0/0/0 Lore% 24 Gallery% 30 Achievement% 23 Wizard Run 0 Options --------- ASCII 1 Keyboard 1 Movement Numpad Keybinds 0 Fullscreen 1 Font 18/SmallcapsGlow Map View 76x50 Tactical HUD 1 Map Filters NONE Filters NONE Steam 1 RUN: 8fc0565b-7562-4dac-b4c2-d1fe5dd5b66d